[Event "Titled Tuesday Blitz February 28 Early 2023"]
[White "Dominguez Perez, Leinier"]
[Black "Weetik, Vjacheslav"]
[WhiteFideId "3503240"]
[BlackFideId "4153472"]
[WhiteElo "2647"]
[BlackElo "2469"]
[Result "0-1"]
[Round "05"]
[TimeControl "180+2"]
[Date "2023.02.28"]
[WhiteClock "0:00:07"]
[BlackClock "0:00:26"]

1. e4 {[%clk 0:03:00]}  c6 {[%clk 0:02:56]} 2. d4 {[%clk 0:03:00]}  d5 {[%clk 0:02:57]} 3. e5 {[%clk 0:03:01]}  Bf5 {[%clk 0:02:56]} 4. Nf3 {[%clk 0:03:01]}  e6 {[%clk 0:02:57]} 5. Be2 {[%clk 0:03:01]}  Nd7 {[%clk 0:02:57]} 6. O-O {[%clk 0:03:01]}  Bg6 {[%clk 0:02:57]} 7. Nbd2 {[%clk 0:03:01]}  Nh6 {[%clk 0:02:58]} 8. Nb3 {[%clk 0:03:00]}  Nf5 {[%clk 0:02:58]} 9. a4 {[%clk 0:02:59]}  Be7 {[%clk 0:02:59]} 10. g4 {[%clk 0:02:54]}  Nh6 {[%clk 0:02:58]} 11. h3 {[%clk 0:02:53]}  O-O {[%clk 0:02:58]} 12. Be3 {[%clk 0:02:47]}  f6 {[%clk 0:02:43]} 13. exf6 {[%clk 0:02:45]}  Rxf6 {[%clk 0:02:43]} 14. g5 {[%clk 0:01:59]}  Rxf3 {[%clk 0:02:43]} 15. Bxf3 {[%clk 0:01:59]}  Bxg5 {[%clk 0:02:43]} 16. Qd2 {[%clk 0:01:58]}  Bxe3 {[%clk 0:02:21]} 17. Qxe3 {[%clk 0:01:51]}  Qf6 {[%clk 0:02:21]} 18. Rae1 {[%clk 0:01:44]}  Re8 {[%clk 0:02:07]} 19. Bg2 {[%clk 0:01:40]}  Bxc2 {[%clk 0:02:05]} 20. Na5 {[%clk 0:01:37]}  Nf5 {[%clk 0:02:01]} 21. Qc3 {[%clk 0:01:35]}  Bxa4 {[%clk 0:01:44]} 22. f4 {[%clk 0:00:49]}  b6 {[%clk 0:01:28]} 23. Nb3 {[%clk 0:00:32]}  Bxb3 {[%clk 0:01:27]} 24. Qxb3 {[%clk 0:00:33]}  Qxd4+ {[%clk 0:01:25]} 25. Kh2 {[%clk 0:00:33]}  Nc5 {[%clk 0:01:23]} 26. Qf3 {[%clk 0:00:28]}  Qxb2 {[%clk 0:01:20]} 27. Qg4 {[%clk 0:00:25]}  Qf6 {[%clk 0:01:14]} 28. Rf3 {[%clk 0:00:20]}  a5 {[%clk 0:01:03]} 29. Ra3 {[%clk 0:00:16]}  a4 {[%clk 0:01:03]} 30. Ra2 {[%clk 0:00:15]}  Qc3 {[%clk 0:00:54]} 31. Ree2 {[%clk 0:00:12]}  g6 {[%clk 0:00:47]} 32. Qg5 {[%clk 0:00:10]}  Kg7 {[%clk 0:00:44]} 33. Qg4 {[%clk 0:00:10]}  Qf6 {[%clk 0:00:37]} 34. Bf1 {[%clk 0:00:10]}  h5 {[%clk 0:00:36]} 35. Qg2 {[%clk 0:00:09]}  Nd4 {[%clk 0:00:34]} 36. Rf2 {[%clk 0:00:08]}  Ne4 {[%clk 0:00:34]} 37. Rfb2 {[%clk 0:00:07]}  Qxf4+ {[%clk 0:00:34]} 38. Kh1 {[%clk 0:00:07]}  Ng3+ {[%clk 0:00:28]} 39. Kg1 {[%clk 0:00:07]}  Nf3+ {[%clk 0:00:27]} 40. Kf2 {[%clk 0:00:07]}  Nh4+ {[%clk 0:00:26]} 0-1


[Site "https://www.chess.com"]

[Event "Titled Tuesday Blitz February 28 Early 2023"]
[White "Orlov, Georgi"]
[Black "Matlakov, Maxim"]
[WhiteFideId "2011271"]
[BlackFideId "4168003"]
[WhiteElo "2646"]
[BlackElo "2666"]
[Result "0-1"]
[Round "05"]
[TimeControl "180+2"]
[Date "2023.02.28"]
[WhiteClock "0:00:02"]
[BlackClock "0:00:18"]

1. d4 {[%clk 0:03:00]}  d5 {[%clk 0:02:58]} 2. Nf3 {[%clk 0:03:01]}  Nf6 {[%clk 0:02:58]} 3. c4 {[%clk 0:03:00]}  c6 {[%clk 0:02:58]} 4. Nc3 {[%clk 0:02:59]}  dxc4 {[%clk 0:02:58]} 5. a4 {[%clk 0:02:58]}  Bf5 {[%clk 0:02:57]} 6. e3 {[%clk 0:02:59]}  e6 {[%clk 0:02:57]} 7. Bxc4 {[%clk 0:02:59]}  Bb4 {[%clk 0:02:57]} 8. O-O {[%clk 0:02:59]}  O-O {[%clk 0:02:57]} 9. Qe2 {[%clk 0:02:58]}  Ne4 {[%clk 0:02:56]} 10. Na2 {[%clk 0:02:51]}  Bd6 {[%clk 0:02:52]} 11. Ne5 {[%clk 0:02:41]}  Nd7 {[%clk 0:02:50]} 12. f3 {[%clk 0:02:34]}  Nef6 {[%clk 0:02:41]} 13. e4 {[%clk 0:02:19]}  Bxe5 {[%clk 0:02:31]} 14. dxe5 {[%clk 0:02:18]}  Nxe5 {[%clk 0:02:32]} 15. Rd1 {[%clk 0:02:16]}  Qe7 {[%clk 0:02:15]} 16. Bb3 {[%clk 0:01:43]}  Bg6 {[%clk 0:01:59]} 17. Bf4 {[%clk 0:01:39]}  Nfd7 {[%clk 0:01:46]} 18. Qe3 {[%clk 0:01:27]}  Rfd8 {[%clk 0:01:45]} 19. Rac1 {[%clk 0:01:23]}  f6 {[%clk 0:01:43]} 20. h3 {[%clk 0:00:58]}  Bf7 {[%clk 0:01:42]} 21. Bg3 {[%clk 0:00:55]}  a5 {[%clk 0:01:32]} 22. f4 {[%clk 0:00:53]}  Ng6 {[%clk 0:01:30]} 23. Rc3 {[%clk 0:00:45]}  e5 {[%clk 0:01:20]} 24. f5 {[%clk 0:00:44]}  Nf4 {[%clk 0:01:20]} 25. Bxf4 {[%clk 0:00:41]}  exf4 {[%clk 0:01:19]} 26. Qxf4 {[%clk 0:00:41]}  Bxb3 {[%clk 0:01:18]} 27. Rxb3 {[%clk 0:00:41]}  Ne5 {[%clk 0:01:19]} 28. Rxd8+ {[%clk 0:00:37]}  Rxd8 {[%clk 0:01:20]} 29. Kh2 {[%clk 0:00:37]}  Qd6 {[%clk 0:01:17]} 30. Rg3 {[%clk 0:00:36]}  Qd2 {[%clk 0:01:11]} 31. Qh4 {[%clk 0:00:35]}  Kh8 {[%clk 0:00:42]} 32. Nc3 {[%clk 0:00:24]}  Qxb2 {[%clk 0:00:42]} 33. Qh5 {[%clk 0:00:22]}  Qd2 {[%clk 0:00:37]} 34. Nb1 {[%clk 0:00:17]}  Qf4 {[%clk 0:00:37]} 35. Nc3 {[%clk 0:00:14]}  Qd2 {[%clk 0:00:29]} 36. Nb1 {[%clk 0:00:13]}  Qh6 {[%clk 0:00:29]} 37. Qxh6 {[%clk 0:00:12]}  gxh6 {[%clk 0:00:30]} 38. Rb3 {[%clk 0:00:12]}  Rd7 {[%clk 0:00:26]} 39. Na3 {[%clk 0:00:12]}  Rd3 {[%clk 0:00:25]} 40. Rxd3 {[%clk 0:00:11]}  Nxd3 {[%clk 0:00:26]} 41. Nc4 {[%clk 0:00:11]}  b5 {[%clk 0:00:19]} 42. axb5 {[%clk 0:00:09]}  cxb5 {[%clk 0:00:20]} 43. Nxa5 {[%clk 0:00:09]}  Nc5 {[%clk 0:00:20]} 44. e5 {[%clk 0:00:07]}  fxe5 {[%clk 0:00:20]} 45. g4 {[%clk 0:00:07]}  b4 {[%clk 0:00:20]} 46. Nc4 {[%clk 0:00:06]}  b3 {[%clk 0:00:20]} 47. Kg3 {[%clk 0:00:05]}  Nd3 {[%clk 0:00:20]} 48. Kf3 {[%clk 0:00:05]}  b2 {[%clk 0:00:20]} 49. Nd2 {[%clk 0:00:05]}  Nc5 {[%clk 0:00:18]} 50. Nb1 {[%clk 0:00:02]}  Kg7 {[%clk 0:00:18]} 51. h4 {[%clk 0:00:02]}  Kf6 {[%clk 0:00:18]} 0-1


[Site "https://www.chess.com"]

[Event "Titled Tuesday Blitz February 28 Early 2023"]
[White "Kamsky, Gata"]
[Black "Domingo Nunez, Ruben"]
[WhiteFideId "2000024"]
[BlackFideId "22245570"]
[WhiteElo "2666"]
[BlackElo "2404"]
[Result "1-0"]
[Round "05"]
[TimeControl "180+2"]
[Date "2023.02.28"]
[WhiteClock "0:00:04"]
[BlackClock "0:00:02"]

1. d4 {[%clk 0:02:52]}  Nf6 {[%clk 0:03:00]} 2. Bf4 {[%clk 0:02:51]}  g6 {[%clk 0:03:00]} 3. c3 {[%clk 0:02:48]}  b6 {[%clk 0:03:00]} 4. Nf3 {[%clk 0:02:47]}  Bb7 {[%clk 0:03:01]} 5. Nbd2 {[%clk 0:02:46]}  Bg7 {[%clk 0:03:01]} 6. e3 {[%clk 0:02:43]}  O-O {[%clk 0:03:00]} 7. a4 {[%clk 0:02:41]}  a5 {[%clk 0:03:00]} 8. h3 {[%clk 0:02:40]}  d6 {[%clk 0:03:00]} 9. Bb5 {[%clk 0:02:39]}  Nbd7 {[%clk 0:02:58]} 10. O-O {[%clk 0:02:36]}  Ne4 {[%clk 0:02:56]} 11. Nxe4 {[%clk 0:02:33]}  Bxe4 {[%clk 0:02:57]} 12. Nd2 {[%clk 0:02:32]}  Bb7 {[%clk 0:02:57]} 13. e4 {[%clk 0:02:31]}  e5 {[%clk 0:02:50]} 14. Be3 {[%clk 0:02:31]}  Nf6 {[%clk 0:02:42]} 15. dxe5 {[%clk 0:02:25]}  dxe5 {[%clk 0:02:41]} 16. Qc2 {[%clk 0:02:18]}  Qe7 {[%clk 0:02:35]} 17. Rfd1 {[%clk 0:02:08]}  Rfd8 {[%clk 0:02:31]} 18. Bg5 {[%clk 0:02:03]}  h6 {[%clk 0:02:28]} 19. Bh4 {[%clk 0:02:02]}  g5 {[%clk 0:02:13]} 20. Bg3 {[%clk 0:02:01]}  Rd6 {[%clk 0:02:02]} 21. f3 {[%clk 0:01:55]}  Nh5 {[%clk 0:01:56]} 22. Bf2 {[%clk 0:01:51]}  Rad8 {[%clk 0:01:48]} 23. Nf1 {[%clk 0:01:48]}  Nf4 {[%clk 0:01:43]} 24. Ne3 {[%clk 0:01:45]}  Bc8 {[%clk 0:01:36]} 25. Kh2 {[%clk 0:01:34]}  Bf8 {[%clk 0:01:28]} 26. Rxd6 {[%clk 0:01:20]}  Rxd6 {[%clk 0:01:28]} 27. Rd1 {[%clk 0:01:19]}  Qd8 {[%clk 0:01:25]} 28. Rxd6 {[%clk 0:01:15]}  Bxd6 {[%clk 0:01:26]} 29. Nf5 {[%clk 0:01:00]}  Bxf5 {[%clk 0:00:59]} 30. exf5 {[%clk 0:00:59]}  e4 {[%clk 0:00:59]} 31. g3 {[%clk 0:00:34]}  e3 {[%clk 0:00:32]} 32. Bxe3 {[%clk 0:00:29]}  Nh5 {[%clk 0:00:32]} 33. Bf2 {[%clk 0:00:28]}  c6 {[%clk 0:00:29]} 34. Bc4 {[%clk 0:00:18]}  Qc7 {[%clk 0:00:28]} 35. f4 {[%clk 0:00:17]}  gxf4 {[%clk 0:00:27]} 36. g4 {[%clk 0:00:17]}  f3+ {[%clk 0:00:27]} 37. Kh1 {[%clk 0:00:15]}  Nf4 {[%clk 0:00:25]} 38. f6 {[%clk 0:00:14]}  Bc5 {[%clk 0:00:16]} 39. Bxc5 {[%clk 0:00:12]}  bxc5 {[%clk 0:00:17]} 40. Qf2 {[%clk 0:00:12]}  Nxh3 {[%clk 0:00:14]} 41. Qxf3 {[%clk 0:00:12]}  Ng5 {[%clk 0:00:13]} 42. Qe3 {[%clk 0:00:11]}  Qd8 {[%clk 0:00:08]} 43. Qe7 {[%clk 0:00:06]}  Qd1+ {[%clk 0:00:08]} 44. Kh2 {[%clk 0:00:05]}  Qd2+ {[%clk 0:00:06]} 45. Kg3 {[%clk 0:00:04]}  Qc1 {[%clk 0:00:01]} 46. Qe8+ {[%clk 0:00:04]}  Kh7 {[%clk 0:00:02]} 47. Bd3+ {[%clk 0:00:04]} 1-0


[Site "https://www.chess.com"]

[Event "Titled Tuesday Blitz February 28 Early 2023"]
[White "Bruzon Batista, Lazaro"]
[Black "Manukyan, Sargis A."]
[WhiteFideId "3503739"]
[BlackFideId "13303970"]
[WhiteElo "2709"]
[BlackElo "2187"]
[Result "1-0"]
[Round "05"]
[TimeControl "180+2"]
[Date "2023.02.28"]
[WhiteClock "0:00:20"]
[BlackClock "0:00:18"]

1. e4 {[%clk 0:03:00]}  c5 {[%clk 0:02:55]} 2. Nf3 {[%clk 0:03:00]}  d6 {[%clk 0:02:53]} 3. Bb5+ {[%clk 0:02:59]}  Bd7 {[%clk 0:02:53]} 4. Bxd7+ {[%clk 0:02:58]}  Qxd7 {[%clk 0:02:54]} 5. c4 {[%clk 0:02:55]}  Nc6 {[%clk 0:02:53]} 6. Nc3 {[%clk 0:02:55]}  Nf6 {[%clk 0:02:53]} 7. d4 {[%clk 0:02:54]}  cxd4 {[%clk 0:02:52]} 8. Nxd4 {[%clk 0:02:54]}  g6 {[%clk 0:02:52]} 9. O-O {[%clk 0:02:54]}  Bg7 {[%clk 0:02:53]} 10. Nde2 {[%clk 0:02:54]}  O-O {[%clk 0:02:52]} 11. f3 {[%clk 0:02:54]}  Rfc8 {[%clk 0:02:51]} 12. a4 {[%clk 0:02:52]}  Nb4 {[%clk 0:02:41]} 13. b3 {[%clk 0:02:48]}  Qd8 {[%clk 0:02:34]} 14. Rb1 {[%clk 0:02:44]}  Qb6+ {[%clk 0:02:29]} 15. Kh1 {[%clk 0:02:44]}  Nd7 {[%clk 0:02:29]} 16. Bg5 {[%clk 0:02:36]}  Kf8 {[%clk 0:02:19]} 17. Qd2 {[%clk 0:02:34]}  Nc5 {[%clk 0:02:15]} 18. f4 {[%clk 0:02:21]}  Ne6 {[%clk 0:01:55]} 19. Bh4 {[%clk 0:02:15]}  Nc5 {[%clk 0:01:09]} 20. f5 {[%clk 0:02:11]}  Re8 {[%clk 0:00:53]} 21. Nf4 {[%clk 0:02:03]}  Kg8 {[%clk 0:00:52]} 22. Nfd5 {[%clk 0:01:45]}  Nxd5 {[%clk 0:00:52]} 23. Nxd5 {[%clk 0:01:45]}  Nxe4 {[%clk 0:00:48]} 24. Qc2 {[%clk 0:00:50]}  Qd4 {[%clk 0:00:39]} 25. Bxe7 {[%clk 0:00:44]}  Nc3 {[%clk 0:00:14]} 26. f6 {[%clk 0:00:39]}  Nxd5 {[%clk 0:00:13]} 27. cxd5 {[%clk 0:00:35]}  Qxd5 {[%clk 0:00:12]} 28. Rbd1 {[%clk 0:00:23]}  Qc6 {[%clk 0:00:13]} 29. Qf2 {[%clk 0:00:23]}  Bf8 {[%clk 0:00:10]} 30. Bxf8 {[%clk 0:00:20]}  Rxf8 {[%clk 0:00:11]} 31. Qf4 {[%clk 0:00:20]}  Kh8 {[%clk 0:00:11]} 32. Qh6 {[%clk 0:00:21]}  Rg8 {[%clk 0:00:12]} 33. Rd3 {[%clk 0:00:21]}  Qc5 {[%clk 0:00:10]} 34. Rh3 {[%clk 0:00:20]}  Qh5 {[%clk 0:00:05]} 35. Rxh5 {[%clk 0:00:20]}  gxh5 {[%clk 0:00:06]} 36. Re1 {[%clk 0:00:19]}  Rg6 {[%clk 0:00:07]} 37. Qf4 {[%clk 0:00:19]}  Rag8 {[%clk 0:00:08]} 38. g3 {[%clk 0:00:18]}  d5 {[%clk 0:00:07]} 39. Re7 {[%clk 0:00:17]}  h4 {[%clk 0:00:05]} 40. Rxf7 {[%clk 0:00:15]}  hxg3 {[%clk 0:00:05]} 41. Rg7 {[%clk 0:00:15]}  g2+ {[%clk 0:00:03]} 42. Kg1 {[%clk 0:00:14]}  R6xg7 {[%clk 0:00:04]} 43. fxg7+ {[%clk 0:00:14]}  Rxg7 {[%clk 0:00:05]} 44. Qf8+ {[%clk 0:00:14]}  Rg8 {[%clk 0:00:05]} 45. Qf6+ {[%clk 0:00:15]}  Rg7 {[%clk 0:00:06]} 46. Qd8+ {[%clk 0:00:15]}  Rg8 {[%clk 0:00:06]} 47. Qxd5 {[%clk 0:00:16]}  Rg7 {[%clk 0:00:07]} 48. Qd4 {[%clk 0:00:16]}  a6 {[%clk 0:00:07]} 49. b4 {[%clk 0:00:16]}  h6 {[%clk 0:00:07]} 50. Qf6 {[%clk 0:00:16]}  Kh7 {[%clk 0:00:08]} 51. a5 {[%clk 0:00:16]}  Rg6 {[%clk 0:00:07]} 52. Qf5 {[%clk 0:00:16]}  Kg7 {[%clk 0:00:06]} 53. h4 {[%clk 0:00:17]}  h5 {[%clk 0:00:05]} 54. Qxh5 {[%clk 0:00:17]}  Kf6 {[%clk 0:00:06]} 55. Qf3+ {[%clk 0:00:16]}  Kg7 {[%clk 0:00:06]} 56. Qxb7+ {[%clk 0:00:16]}  Kh6 {[%clk 0:00:06]} 57. Qb6 {[%clk 0:00:16]}  Kh5 {[%clk 0:00:06]} 58. Qxg6+ {[%clk 0:00:15]}  Kxg6 {[%clk 0:00:07]} 59. Kxg2 {[%clk 0:00:15]}  Kf5 {[%clk 0:00:07]} 60. Kg3 {[%clk 0:00:16]}  Ke4 {[%clk 0:00:07]} 61. Kg4 {[%clk 0:00:16]}  Kd5 {[%clk 0:00:08]} 62. h5 {[%clk 0:00:17]}  Kc4 {[%clk 0:00:09]} 63. h6 {[%clk 0:00:17]}  Kxb4 {[%clk 0:00:10]} 64. h7 {[%clk 0:00:18]}  Kxa5 {[%clk 0:00:10]} 65. h8=Q {[%clk 0:00:18]}  Kb4 {[%clk 0:00:11]} 66. Qd4+ {[%clk 0:00:18]}  Ka3 {[%clk 0:00:11]} 67. Kf3 {[%clk 0:00:18]}  a5 {[%clk 0:00:11]} 68. Qc3+ {[%clk 0:00:19]}  Ka4 {[%clk 0:00:12]} 69. Qa1+ {[%clk 0:00:19]}  Kb5 {[%clk 0:00:13]} 70. Qb2+ {[%clk 0:00:19]}  Ka4 {[%clk 0:00:14]} 71. Qa2+ {[%clk 0:00:19]}  Kb4 {[%clk 0:00:14]} 72. Ke3 {[%clk 0:00:20]}  a4 {[%clk 0:00:14]} 73. Kd3 {[%clk 0:00:20]}  a3 {[%clk 0:00:15]} 74. Kd4 {[%clk 0:00:20]}  Ka5 {[%clk 0:00:16]} 75. Qxa3+ {[%clk 0:00:20]}  Kb6 {[%clk 0:00:17]} 76. Qc5+ {[%clk 0:00:20]}  Kb7 {[%clk 0:00:17]} 77. Kd5 {[%clk 0:00:20]}  Ka6 {[%clk 0:00:18]} 78. Qb4 {[%clk 0:00:20]} 1-0


[Site "https://www.chess.com"]

[Event "Titled Tuesday Blitz February 28 Early 2023"]
[White "Kim, Sergey"]
[Black "Kozak, Adam"]
[WhiteFideId "13700570"]
[BlackFideId "753246"]
[WhiteElo "2621"]
[BlackElo "2469"]
[Result "1-0"]
[Round "05"]
[TimeControl "180+2"]
[Date "2023.02.28"]
[WhiteClock "0:00:24"]
[BlackClock "0:00:02"]

1. d4 {[%clk 0:03:00]}  Nf6 {[%clk 0:02:53]} 2. c4 {[%clk 0:03:00]}  e6 {[%clk 0:02:40]} 3. Nc3 {[%clk 0:03:00]}  Bb4 {[%clk 0:02:39]} 4. Qc2 {[%clk 0:03:00]}  b6 {[%clk 0:02:39]} 5. a3 {[%clk 0:03:00]}  Bxc3+ {[%clk 0:02:39]} 6. Qxc3 {[%clk 0:03:01]}  Bb7 {[%clk 0:02:38]} 7. Nf3 {[%clk 0:03:01]}  Ne4 {[%clk 0:02:37]} 8. Qc2 {[%clk 0:03:01]}  d6 {[%clk 0:02:38]} 9. g3 {[%clk 0:03:01]}  f5 {[%clk 0:02:38]} 10. Bg2 {[%clk 0:03:01]}  O-O {[%clk 0:02:39]} 11. O-O {[%clk 0:03:02]}  Nd7 {[%clk 0:02:39]} 12. Ng5 {[%clk 0:03:02]}  Nxg5 {[%clk 0:02:20]} 13. Bxb7 {[%clk 0:03:00]}  Rb8 {[%clk 0:02:20]} 14. Bg2 {[%clk 0:03:00]}  Nf7 {[%clk 0:02:17]} 15. b4 {[%clk 0:02:59]}  Nf6 {[%clk 0:02:16]} 16. Bb2 {[%clk 0:02:55]}  Qe7 {[%clk 0:02:15]} 17. a4 {[%clk 0:02:44]}  g6 {[%clk 0:02:12]} 18. b5 {[%clk 0:02:41]}  e5 {[%clk 0:02:11]} 19. dxe5 {[%clk 0:02:36]}  Nxe5 {[%clk 0:02:12]} 20. a5 {[%clk 0:02:32]}  Ned7 {[%clk 0:02:09]} 21. axb6 {[%clk 0:02:31]}  axb6 {[%clk 0:02:10]} 22. Ra7 {[%clk 0:02:28]}  Nc5 {[%clk 0:02:09]} 23. Qc3 {[%clk 0:02:26]}  h5 {[%clk 0:01:56]} 24. Qd2 {[%clk 0:02:13]}  Kh7 {[%clk 0:01:55]} 25. Bc1 {[%clk 0:02:00]}  Qg7 {[%clk 0:01:48]} 26. Bb2 {[%clk 0:01:56]}  Qe7 {[%clk 0:01:47]} 27. Bc1 {[%clk 0:01:55]}  Qg7 {[%clk 0:01:46]} 28. Bb2 {[%clk 0:01:55]}  Rbe8 {[%clk 0:01:43]} 29. Bc6 {[%clk 0:01:50]}  Re7 {[%clk 0:01:42]} 30. Rfa1 {[%clk 0:01:49]}  Qf7 {[%clk 0:01:37]} 31. Bc1 {[%clk 0:01:46]}  Qg7 {[%clk 0:01:33]} 32. Bb2 {[%clk 0:01:46]}  Nce4 {[%clk 0:01:27]} 33. Qd4 {[%clk 0:01:40]}  Qf7 {[%clk 0:01:21]} 34. Ra8 {[%clk 0:01:34]}  Rxa8 {[%clk 0:01:20]} 35. Rxa8 {[%clk 0:01:33]}  Re5 {[%clk 0:01:12]} 36. f3 {[%clk 0:01:12]}  Nc5 {[%clk 0:00:13]} 37. f4 {[%clk 0:00:53]}  Re6 {[%clk 0:00:13]} 38. Bd5 {[%clk 0:00:53]}  Ncd7 {[%clk 0:00:13]} 39. Rc8 {[%clk 0:00:45]}  h4 {[%clk 0:00:09]} 40. Rxc7 {[%clk 0:00:41]}  hxg3 {[%clk 0:00:08]} 41. hxg3 {[%clk 0:00:40]}  Kh6 {[%clk 0:00:01]} 42. Rxd7 {[%clk 0:00:26]}  Qxd7 {[%clk 0:00:01]} 43. Bxe6 {[%clk 0:00:25]}  Qxe6 {[%clk 0:00:01]} 44. Qxf6 {[%clk 0:00:25]}  Qxf6 {[%clk 0:00:02]} 45. Bxf6 {[%clk 0:00:24]} 1-0


[Site "https://www.chess.com"]

[Event "Titled Tuesday Blitz February 28 Early 2023"]
[White "Demin, Vladimir"]
[Black "Zemlyanskii, Ivan"]
[WhiteFideId "4167457"]
[BlackFideId "24249971"]
[WhiteElo "2562"]
[BlackElo "2233"]
[Result "0-1"]
[Round "05"]
[TimeControl "180+2"]
[Date "2023.02.28"]
[WhiteClock "0:00:07"]
[BlackClock "0:00:25"]

1. e4 {[%clk 0:02:55]}  Nc6 {[%clk 0:03:00]} 2. Nf3 {[%clk 0:02:54]}  d5 {[%clk 0:03:00]} 3. exd5 {[%clk 0:02:55]}  Qxd5 {[%clk 0:03:01]} 4. Nc3 {[%clk 0:02:54]}  Qd6 {[%clk 0:02:58]} 5. Nb5 {[%clk 0:02:45]}  Qd8 {[%clk 0:02:52]} 6. d4 {[%clk 0:02:44]}  Nf6 {[%clk 0:02:37]} 7. Bc4 {[%clk 0:02:33]}  a6 {[%clk 0:02:14]} 8. Nc3 {[%clk 0:02:33]}  Bf5 {[%clk 0:02:03]} 9. a3 {[%clk 0:01:53]}  e6 {[%clk 0:01:55]} 10. Be3 {[%clk 0:01:49]}  Be7 {[%clk 0:01:47]} 11. O-O {[%clk 0:01:49]}  O-O {[%clk 0:01:47]} 12. h3 {[%clk 0:01:45]}  Ne4 {[%clk 0:01:27]} 13. Bd3 {[%clk 0:01:38]}  Nxc3 {[%clk 0:01:25]} 14. bxc3 {[%clk 0:01:39]}  Bg6 {[%clk 0:01:26]} 15. c4 {[%clk 0:01:31]}  Bf6 {[%clk 0:01:25]} 16. c3 {[%clk 0:01:30]}  e5 {[%clk 0:01:07]} 17. Bxg6 {[%clk 0:01:20]}  hxg6 {[%clk 0:01:07]} 18. d5 {[%clk 0:01:13]}  Na5 {[%clk 0:01:08]} 19. Qa4 {[%clk 0:01:11]}  b6 {[%clk 0:01:02]} 20. c5 {[%clk 0:00:46]}  Qxd5 {[%clk 0:00:58]} 21. cxb6 {[%clk 0:00:45]}  cxb6 {[%clk 0:00:59]} 22. Bxb6 {[%clk 0:00:45]}  Nc4 {[%clk 0:00:55]} 23. Rab1 {[%clk 0:00:27]}  Rab8 {[%clk 0:00:44]} 24. Ba7 {[%clk 0:00:24]}  Rxb1 {[%clk 0:00:34]} 25. Rxb1 {[%clk 0:00:25]}  e4 {[%clk 0:00:35]} 26. Nd4 {[%clk 0:00:22]}  e3 {[%clk 0:00:36]} 27. Qc6 {[%clk 0:00:09]}  exf2+ {[%clk 0:00:30]} 28. Kh1 {[%clk 0:00:06]}  Qxc6 {[%clk 0:00:24]} 29. Nxc6 {[%clk 0:00:07]}  Nd2 {[%clk 0:00:25]} 0-1


[Site "https://www.chess.com"]